Cogmind - Beta 16.1 @@@ ROGUE MODE // 2026.03.10 @ 09:14:33 Player: Ragnakor Result: Destroyed by Explosive Trap Performance ------------- Evolutions (0) 0 Regions Visited (1) 200 Robots Destroyed (14) 70 Value Destroyed (318) 318 Prototype IDs (0) 0 Alien Tech Used (0) 0 Bonus (0) 0 TOTAL SCORE: 588 Bonus ------- None Cogmind --------- Core Integrity 0/250 Matter 200/300 Energy 124/125 System Corruption 1% Temperature Cool (0) Movement Rolling (100) Location -10/Materials Parts ------- > --- POWER (1) -------- Light Ion Engine > --- PROPULSION (2) --- Aluminum Leg Compact Wheel > --- UTILITY (2) ------ Small Storage Unit Improved Terrain Scanner > --- WEAPON (2) ------- EM Pulse Gun Grenade Launcher > --- INVENTORY (8) ---- Ion Engine Transport Network Coupler Small Laser Peak State ------------ > --- POWER ------------ Light Nuclear Core > --- PROPULSION ------- Aluminum Leg Compact Wheel > --- UTILITY ---------- Small Storage Unit Improved Terrain Scanner > --- WEAPON ----------- EM Pulse Gun Grenade Launcher > --- INVENTORY -------- Ion Engine Transport Network Coupler [Rating: 11] Favorites ----------- Power Ion Engine Engine Ion Engine Power Core Light Nuclear Core Propulsion Aluminum Leg Leg Aluminum Leg Wheel Compact Wheel Utility Small Storage Unit Device Improved Terrain Scanner Storage Small Storage Unit Weapon Light Assault Rifle Energy Gun EM Pulse Gun Ballistic Gun Light Assault Rifle Launcher Grenade Launcher Build | -11 -10 ------- Run | Yrd Mat Slots Evolved . | . . Power . | . . Propulsion . | . . Utility . | . . Weapon . | . . Parts Attached 14 | 7 7 Power 4 | 1 3 Engine 3 | 1 2 Core 1 | . 1 Reactor . | . . Propulsion 4 | 2 2 Treads . | . . Leg 3 | 2 1 Wheel 1 | . 1 Hover . | . . Flight . | . . Utility 2 | 2 . Device 1 | 1 . Storage 1 | 1 . Processor . | . . Hackware . | . . Protection . | . . Artifact . | . . Weapon 4 | 2 2 Energy Gun 1 | . 1 Energy Cannon . | . . Ballistic Gun 2 | 2 . Ballistic Cannon . | . . Launcher 1 | . 1 Special Weapon . | . . Impact Weapon . | . . Slashing Weapon . | . . Piercing Weapon . | . . Special Melee Weapon . | . . Unidentified Prototypes . | . . Parts Lost 5 | . 5 Power 1 | . 1 Propulsion 2 | . 2 Utility . | . . Weapon 2 | . 2 Highest Loss Streak 4 | . 4 To Critical Strikes . | . . Average Backups 3 | 2 4 Power 1 | 1 1 Propulsion . | . . Utility . | . . Weapon 1 | . 1 Tool/Special . | . . Unused Backups 4 | . 4 Power 2 | . 2 Propulsion . | . . Utility 1 | . 1 Weapon 1 | . 1 Tool/Special . | . . Average Slot Usage (%) 99 | . 99 Engine 13 | . 13 Leg 24 | . 24 Wheel 2 | . 2 Device 14 | . 14 Storage 14 | . 14 Energy Gun 2 | . 2 Ballistic Gun 22 | . 22 Launcher 2 | . 2 Peak Build Rating 11 | 9 11 Average Rating 8 | 5 9 On Entrance 4 | . 9 Avg Prop Armor Cover (%) 6 | . 6 Naked Turns . | . . Heaviest Build 16 | 13 16 Greatest Support 20 | 20 20 Greatest Overweight (x) 2 | 2 1 Average Overweight (x) . | . . Largest Inventory Capacity 8 | 8 8 Average Capacity 7 | 6 8 Most Carried 5 | 4 5 Average Carried 3 | 2 4 Final Capacity 8 | 8 8 Final Carried 4 | 4 3 Class Distribution -------------------- 88% | Mutant 11% | Scavenger-Mutant Dominant Class ---------------- Mutant | -10/Materials Resources | -11 -10 ----------- Run | Yrd Mat Matter Collected 409 | 288 121 Remotely . | . . Salvage Created 377 | 91 286 Parts 20 | 5 15 Haulers Intercepted 1 | . 1 Recyclers Shooed . | . . Parts Field Recycled . | . . Retrieved Matter . | . . Parts Self-Destructed . | . . Prevented . | . . Parts Restored . | . . Kills | -11 -10 ------- Run | Yrd Mat Combat Hostiles Destroyed 9 | . 9 Guns 4 | . 4 AOE 5 | . 5 Classes Destroyed 6 | 2 4 Tunneler 2 | 2 . Hauler 1 | . 1 Recycler 1 | 1 . Watcher 1 | . 1 Swarmer 3 | . 3 Grunt 6 | . 6 Best Kill Streak 4 | 2 4 Combat Bots Only 4 | . 4 Max Kills in Single Turn 2 | 1 2 Gunslinging . | . . Exploded 2 | . 2 Melee . | . . Uniques/NPCs Destroyed . | . . Combat | -11 -10 -------- Run | Yrd Mat Hostile Shots Fired 73 | . 73 Missed 9 | . 9 Hits 64 | . 64 Projectile 64 | . 64 Damage Taken 843 | . 843 Core 252 | . 252 Absorbed by Shields . | . . Core Remaining (%) 100 | 100 . Volleys Fired 63 | 11 52 Largest 2 | 2 2 Hottest 70 | 40 70 Shots Fired 121 | 22 99 Gun 115 | 22 93 Cannon . | . . Launcher 6 | . 6 Special . | . . Kinetic 114 | 22 92 Thermal . | . . Explosive 6 | . 6 Electromagnetic 1 | . 1 Robot Hit Streak 7 | 7 7 Robot Miss Streak 6 | 2 6 Penetration Max . | . . Secondary Targets 2 | . 2 Max Gunslinging Chain 1 | . 1 Shots Hit Robots 76 | 17 59 Core Hits 30 | 6 24 Critical Kills . | . . Critical Parts Destroyed . | . . Critical Strikes . | . . Melee Attacks . | . . Impact . | . . Slashing . | . . Piercing . | . . Sneak Attacks . | . . Combat Hostiles . | . . Follow-up Attacks . | . . Damage Inflicted 945 | 143 802 Guns 588 | 143 445 Cannons . | . . Explosions 357 | . 357 Melee . | . . Ramming . | . . Kinetic 588 | 143 445 Thermal . | . . Explosive 357 | . 357 Electromagnetic . | . . Impact . | . . Slashing . | . . Piercing . | . . Highest Corruption 1 | . 1 Average Corruption 1 | . 1 Corruption Purged . | . . Corruption Blocked . | . . Effects 1 | . 1 Message Errors 1 | . 1 Overload Shots . | . . Overflow Damage 10 | . 10 Projectiles . | . . Explosions 10 | . 10 Melee . | . . Knockbacks . | . . Impact . | . . Kinetic . | . . Secondary . | . . Self-Inflicted Damage 22 | . 22 Shots 1 | . 1 Rammed . | . . Targets Rammed . | . . Kicked . | . . Crushed . | . . Highest Temperature 50 | . 50 Average Temperature 15 | . 15 Received Heat Transfer 414 | . 414 Siege Activations . | . . Martial Activations . | . . Shielding Activations . | . . Robots Disrupted . | . . Combat Hostiles . | . . Robots Corrupted . | . . Combat Hostiles . | . . Parts Fried . | . . Impact Corruptions . | . . Robots Melted . | . . Combat Hostiles . | . . Parts Melted . | . . Heat Transferred . | . . Parts Sabotaged . | . . Parts Stolen . | . . Parts Stripped . | . . Power Chain Reactions . | . . Alert | -11 -10 ------- Run | Yrd Mat Maximum Alert Level . | . . Low Security (%) 100 | 100 100 Level 1 . | . . Level 2 . | . . Level 3 . | . . Level 4 . | . . Level 5 . | . . High Security . | . . Max Security . | . . Peak Influence 184 | 5 184 Initial . | . . Average 46 | 1 56 Influence Increases 403 | 15 388 Destroy 0b10 Robot/C 180 | . 180 Destroy 0b10 Robot/NC 25 | 15 10 Destroy Leader 44 | . 44 Successful Hack 5 | . 5 Disable Machine 30 | . 30 Destroy Structure 29 | . 29 Lose Combat Pursuer 90 | . 90 Influence Decreases 251 | 15 236 Time Decay 201 | 15 186 Lost Part 50 | . 50 Squads Dispatched 1 | . 1 Investigation 1 | . 1 Extermination . | . . Reinforcement . | . . Assault . | . . Garrison . | . . Intercept . | . . Searches Triggered . | . . Construction Impeded . | . . Haulers Reinforced . | . . Active Scanning Responses . | . . Cargo Convoy Interrupts . | . . Stealth | -11 -10 --------- Run | Yrd Mat Distress Signals 1 | . 1 Communications Jammed . | . . Distress Signals . | . . Times Spotted 16 | . 16 Peak Tracking Total 5 | . 5 Tactical Retreats 2 | . 2 Traps | -11 -10 ------- Run | Yrd Mat Traps Triggered 2 | . 2 Indirectly . | . . Trap Hack Attempts . | . . Triggered . | . . Disarmed . | . . Reprogrammed . | . . Reused . | . . Traps Extracted . | . . Installed . | . . Triggered . | . . Machines | -11 -10 ---------- Run | Yrd Mat Machines Disabled 2 | . 2 Max in Single Turn 2 | . 2 Machines Repaired . | . . Machines Dismantled . | . . Machines Sabotaged . | . . Overloaded Fab Kills . | . . Hacking | -11 -10 --------- Run | Yrd Mat Machines Accessed 4 | . 4 Terminals 3 | . 3 Fabricators . | . . Repair Stations . | . . Recycling Units 1 | . 1 Scanalyzers . | . . Garrison Access . | . . Total Hacks 10 | . 10 Successful 4 | . 4 Failed 6 | . 6 Catastrophic 1 | . 1 Database Lockouts . | . . Manual . | . . Terminals 9 | . 9 Fabricators . | . . Repair Stations . | . . Recycling Units 1 | . 1 Scanalyzers . | . . Garrison Access . | . . Terminal Hacks 3 | . 3 Record 1 | . 1 Locate Traps 1 | . 1 Zone Layout 1 | . 1 Fabricator Hacks . | . . Repair Station Hacks . | . . Recycling Unit Hacks 1 | . 1 Report Inventory 1 | . 1 Scanalyzer . | . . Garrison Access Hacks . | . . Unauthorized Hacks . | . . Terminals . | . . Fabricators . | . . Repair Stations . | . . Recycling Units . | . . Scanalyzers . | . . Garrison Access . | . . Data Cores Recovered . | . . Used . | . . Hacking Detections 2 | . 2 Full Trace Events 1 | . 1 Feedback Events 1 | . 1 Corruption 1 | . 1 Feedback Blocked . | . . Robot Schematics Acquired . | . . Robots Built . | . . Authchips . | . . Time . | . . Total Robot Build Rating . | . . Part Schematics Acquired . | . . Parts Built . | . . Authchips . | . . Time . | . . Total Part Build Rating . | . . Part Studies Acquired . | . . Parts Repaired . | . . Time . | . . Parts Recycled . | . . Recycled Matter . | . . Retrieved Matter . | . . Retrieved Components . | . . Parts Scanalyzed . | . . Part Schematics Acquired . | . . Parts Damaged . | . . Bothacking | -11 -10 ------------ Run | Yrd Mat Used RIF Installer . | . . Robots Hacked . | . . Non-combat . | . . Combat . | . . Robot Hacks Applied . | . . Relay Couplers Released . | . . Fabnet Peak Effective % . | . . Robots Rewired . | . . Allies Hacked . | . . Hacks Repelled . | . . Allies | -11 -10 -------- Run | Yrd Mat Total Allies . | . . Largest Group . | . . Highest-Rated Group . | . . Highest-Rated Ally . | . . Total Orders . | . . Ally Attacks . | . . Total Damage . | . . Kills . | . . Allies Corrupted . | . . Allies Melted . | . . Intel | -11 -10 ------- Run | Yrd Mat Active Infowar (turns) 573 | 20 553 Terrain 573 | 20 553 Robot Analysis Total . | . . Derelict Logs Recovered . | . . Drone Launches . | . . Drone Recoveries . | . . Exploration | -11 -10 ------------- Run | Yrd Mat Turns Passed 670 | 117 553 Spaces Moved 393 | 61 332 Core 15 | 15 . Treads . | . . Legs 325 | 46 279 Wheels 53 | . 53 Hover . | . . Flight . | . . Fastest Speed 50 | 50 100 Average Speed 119 | 117 120 Slowest Speed 190 | 150 190 Overloaded Moves . | . . Propulsion Burnouts . | . . Robots Hopped . | . . Potential Cave-ins . | . . Cave-ins Triggered . | . . Exploration Rate (%) 32 | 4 61 Regions Visited 1 Branch Regions . Pre-discovered Areas . | . . Known Exits Taken . | . . Unknown Exits Taken 1 | 1 . Scrap Searched . | . . Spaces Dug . | . . Terrain Destroyed 41 | . 41 Melee . | . . Projectile . | . . AOE 41 | . 41 Terrain Rammed . | . . Walls Destroyed . | . . Machines Disabled . | . . Actions | -11 -10 --------- Run | Yrd Mat Total 489 | 85 404 Wait 9 | 3 6 Move 392 | 60 332 Hop . | . . Pick Up 8 | 4 4 Fast Attach 8 | 7 1 Attach 4 | . 4 Detach . | . . Swap 4 | . 4 Drop 1 | . 1 Fire 63 | 11 52 Melee . | . . Ram . | . . Kick . | . . Crush . | . . Escape Stasis . | . . Rewire . | . . Trap . | . . Miscellaneous . | . . Route ------- -11/Scrapyard -10/Materials (discovered 3 exits: [*Mat] / [*Min x2]) History --------- Turn | Location | Event 19 | -11/Scrapyard | Discovered new exit (range 16) 118 | -11/Scrapyard | Entered Materials 166 | -10/Materials | Discovered new exit (range 13) 301 | -10/Materials | Build established: Mutant 347 | -10/Materials | Discovered new exit (range 15) 556 | -10/Materials | Core integrity fell below 50% 570 | -10/Materials | Core integrity fell below 20% 609 | -10/Materials | Lost 4 parts (2n2w) 653 | -10/Materials | Discovered new exit (range 15) 671 | -10/Materials | Destroyed by Explosive Trap Last Messages --------------- 00641_ Connecting with Terminal... >>Query(Scanalyzer) Comprehensive suite of scanning and analysis tools for diagnosing faulty prototypes, examining the properties of self-developed [Derelict] components, and reverse engineering technology recovered from the surface battle site. Capable of producing schematics for components scanned, though multiple scans may be required and the deconstruction process may render the component itself useless. Advanced scanalyzers are equipped with a wider array of devices for more quickly and safely analyzing esoteric technologies. 00653_ EXIT=FOUND 00654_ K-01 Serf collects debris. 00665_ K-01 Serf cleans the Atomic Centrifuge. 00668_ K-01 Serf collects debris. 00671_ Triggered Explosive Trap. 00671_ An explosion rips through the floor. Map ----- +----------------------------------------------------+ | ?????????#????????????## | | ???????????????????????# | | ?????????#????#????????# | | ??????????????????#?##?# | | ?????#?????????????????# | | ???????###########???##?? | | ??????##* """"" #?????? ? | | ???????# ""T"" #???????? | | ???????# #???###?# | | ???????# """ """ #??## ### | | ??????## """ """ #??# | | ????#??# """ """ ##### # | | ???????# # * | | ???????# # * | | ????#?#######+##+# % | | ?????## # " " | | ??????# + "" ""! | | ????#?# # """"" | | ??????# ######## """ | | ####### # # | | # # # # | | # # # ###+##### | | #= # # #?# #?#?? | | # k # + #?# #???? | | # """ # # #?# #?#?? | | #@""" + # ### #?#?? | | # """ # # ! #?# #???# | | # ^ # # ### ##??? | | # """ # # ## ##?# | | # """ # # ## #?## | | # """ # # + #?# | | # # # ## #?# | | ####### ######### #### | | ??????# #????#?# #?# | | ??????# < #???? # ### | | ?#????# #????# " | | ??????#####????# # ### | | ???????????????### #?? | | ?????????????????#######?? | | ??????????#????????????#?? | | ??????????????#??????????? | | | | | | | | | | | | | | | | | | | +----------------------------------------------------+ Best States ------------- Heat Dissipation 25 Energy Generation 14 Energy Capacity 250 Matter Stores 300 Matter Capacity 300 Sight Range 16 Terrain Scan Range 16 Terrain Scan Density 10 Evasion (%) 55 Item Schematics ----------------- None Robot Schematics ------------------ None Fabricated ------------ Nothing Repaired ---------- Nothing Studied --------- None Alien Tech Used ----------------- None Achievements -------------- None Challenges ------------ None Game ------ Seed MobileScatterJets Manual? 0 Play Time 00:11:12 Cumulative 13.1 hours Start 2026.03.10 @ 09:07:55 End 2026.03.10 @ 09:14:33 Sessions 1 Manual Loads 0 Difficulty Rogue Special Mode None Game No. 24 Rogue 24 Adventurer 0 Explorer 0 Win Type - Total 0 Types 0/0/0/0/0/0/0/0/0/0 Lore% 21 Gallery% 16 Achievement% 14 Wizard Run 0 Options --------- Layout 1 ASCII 0 Keyboard 0 Movement Numpad Keybinds 0 Fullscreen 1 Font 24/Smallcaps Map View 50x35 Zoom Use 0% Tactical HUD 1 Map Filters NONE Filters NONE Steam 1 RUN: 16c6bc67-6095-4bed-b015-936f01f9e66b